fUST/lending_fUST_20250716
["ID","MTS","AMOUNT","RATE_DAILY","PERIOD"]
[372513245,1752666645071,-451.90628207,0.00020547,2]
[372513246,1752666645080,-460.0,0.00020547,2]
[372513247,1752666645090,-460.0,0.00020547,2]
[372513248,1752666645099,-460.0,0.00020547,2]
[372513249,1752666645109,-460.0,0.00020547,2]
[372513250,1752666645118,-460.0,0.00020547,2]
[372513251,1752666645127,-460.0,0.00020547,2]
[372513252,1752666645136,-589.6,0.00020547,2]
[372513253,1752666645145,-272.19601069,0.00020547,2]
[372513254,1752666645155,-460.0,0.00020547,2]
[372513255,1752666645164,-460.0,0.00020547,2]
[372513256,1752666645174,-1035.25,0.00020547,2]
[372513257,1752666645183,-460.0,0.00020547,2]
[372513258,1752666645192,-460.0,0.00020547,2]
[372513259,1752666645202,-160.0,0.00020624,2]
[372513260,1752666645212,-160.0,0.00020653,2]
[372513261,1752666645222,-160.0,0.00020653,2]
[372513262,1752666645231,-160.0,0.00020653,2]
[372513263,1752666645240,-160.0,0.00020653,2]
[372513264,1752666645250,-160.0,0.00020653,2]
[372513265,1752666645259,-160.0,0.00020653,2]
[372513266,1752666645268,-215.5496034,0.00020653,2]
[372513267,1752666645278,-160.0,0.00020653,2]
[372513268,1752666645287,-214.40824756,0.00020653,2]
[372513269,1752666645296,-838.99048831,0.00020653,2]
[372513270,1752666645306,-476.07036022,0.00020653,2]
[372513271,1752666645315,-160.0,0.00020653,2]
[372513272,1752666645325,-12605.49131908,0.00020653,2]
[372513273,1752666645334,-520.85416667,0.00020653,2]
[372513274,1752666645343,-767.41967507,0.00020728,3]
[372513275,1752666645353,-503.18757773,0.00020815,2]
[372513276,1752666645362,-460.0,0.00020821,2]
[372513277,1752666645372,-460.0,0.00020821,2]
[372513278,1752666645381,-476.65,0.00020821,2]
[372513279,1752666645391,-460.0,0.00020821,2]
[372513280,1752666645400,-1758.23,0.00020821,2]
[372513281,1752666645411,-307.2,0.00020821,2]
[372513282,1752666645420,-807.07,0.00020821,2]
[372513283,1752666645431,-460.0,0.00020821,2]
[372513284,1752666645444,-608.79,0.00020821,2]
[372513285,1752666645454,-684.91,0.00020821,2]
[372513286,1752666645465,-1121.67,0.00020821,2]
[372513287,1752666645475,-551.34,0.00020821,2]
[372513288,1752666645484,-468.23,0.00020821,2]
[372513289,1752666645493,-460.0,0.00020821,2]
[372513290,1752666645502,-460.0,0.00020821,2]
[372513291,1752666645511,-1164.17,0.00020821,2]
[372513292,1752666645521,-460.0,0.00020821,2]
[372513293,1752666645531,-460.0,0.00020821,2]
[372513294,1752666645540,-460.0,0.00020821,2]
[372513295,1752666645549,-460.0,0.00020821,2]
[372513296,1752666645558,-460.0,0.00020821,2]
[372513297,1752666645567,-589.6,0.00020821,2]
[372513298,1752666645576,-460.0,0.00020821,2]
[372513299,1752666645585,-460.0,0.00020821,2]
[372513300,1752666645594,-1035.25,0.00020821,2]
[372513301,1752666645603,-460.0,0.00020821,2]
[372513302,1752666645612,-2180.02873526,0.00020927,2]
[372513303,1752666645621,-767.41967507,0.00020934,4]
[372513304,1752666645631,-5000.0,0.00021,19]
[372513305,1752666645640,-503.14949113,0.00021,2]
[372513306,1752666645649,-500.38517312,0.00021,2]
[372513307,1752666645658,-500.0,0.00021,2]
[372513308,1752666645667,-500.0,0.00021,2]
[372513309,1752666645675,-503.33669226,0.00021,2]
[372513310,1752666645684,-676.979,0.00021033,2]
[372513311,1752666645693,-178.37035677,0.00021033,2]
[372513312,1752666645702,-360.0,0.0002106,2]
[372513313,1752666645711,-500.0,0.00021079,2]
[372513314,1752666645720,-508.27684544,0.00021079,2]
[372513315,1752666645729,-614.40379172,0.00021079,2]
[372513316,1752666645738,-460.0,0.00021095,2]
[372513317,1752666645747,-392.62200084,0.00021095,2]
[372513318,1752666645755,-460.0,0.00021095,2]
[372513319,1752666645765,-1758.23,0.00021095,2]
[372513320,1752666645774,-807.07,0.00021095,2]
[372513321,1752666645783,-546.21,0.00021095,2]
[372513322,1752666645792,-608.79,0.00021095,2]
[372513323,1752666645801,-684.91,0.00021095,2]
[372513324,1752666645810,-1121.67,0.00021095,2]
[372513325,1752666645819,-551.34,0.00021095,2]
[372513326,1752666645828,-468.23,0.00021095,2]
[372513327,1752666645837,-460.0,0.00021095,2]
[372513328,1752666645846,-285.09,0.00021095,2]
[372513329,1752666645855,-1164.17,0.00021095,2]
[372513330,1752666645865,-460.0,0.00021095,2]
[372513331,1752666645874,-539.68,0.00021095,2]
[372513332,1752666645883,-460.0,0.00021095,2]
[372513333,1752666645892,-460.0,0.00021095,2]
[372513335,1752666645901,-589.6,0.00021095,2]
[372513337,1752666645911,-460.0,0.00021095,2]
[372513338,1752666645920,-460.0,0.00021095,2]
[372513339,1752666645929,-460.0,0.00021095,2]
[372513340,1752666645938,-1035.25,0.00021095,2]
[372513341,1752666645947,-372.18,0.00021095,2]
[372513342,1752666645956,-500.0,0.0002111,2]
[372513343,1752666645965,-767.41967507,0.00021141,4]
[372513344,1752666645974,-767.41967507,0.00021348,5]
[372513345,1752666645983,-460.0,0.00021369,2]
[372513346,1752666645991,-460.0,0.00021369,2]
[372513347,1752666646001,-1758.23,0.00021369,2]
[372513348,1752666646010,-807.07,0.00021369,2]
[372513349,1752666646019,-608.79,0.00021369,2]
[372513350,1752666646028,-684.91,0.00021369,2]
[372513351,1752666646037,-1121.67,0.00021369,2]
[372513352,1752666646046,-551.34,0.00021369,2]
[372513353,1752666646055,-468.23,0.00021369,2]
[372513354,1752666646064,-460.0,0.00021369,2]
[372513355,1752666646073,-1164.17,0.00021369,2]
[372513356,1752666646083,-460.0,0.00021369,2]
[372513357,1752666646092,-344.35,0.00021369,2]
[372513358,1752666646102,-524.67093891,0.00021369,2]
[372513359,1752666646112,-589.6,0.00021369,2]
[372513360,1752666646122,-460.0,0.00021369,2]
[372513361,1752666646132,-500.46,0.00021369,2]
[372513362,1752666646141,-460.0,0.00021369,2]
[372513363,1752666646151,-1035.25,0.00021369,2]
[372513364,1752666646160,-699.74181492,0.00021542,2]
[372513365,1752666646170,-1000.0,0.00021548,2]
[372513366,1752666646179,-1000.0,0.00021548,2]
[372513367,1752666646189,-767.41967507,0.00021555,5]
[372513368,1752666646199,-2351.0,0.00021593,2]
[372513369,1752666646208,-587.0,0.00021596,2]
[372513370,1752666646218,-400.0,0.00021608,2]
[372513371,1752666646227,-460.0,0.00021643,2]
[372513372,1752666646237,-460.0,0.00021643,2]
[372513373,1752666646247,-1758.23,0.00021643,2]
[372513374,1752666646257,-807.07,0.00021643,2]
[372513375,1752666646266,-608.79,0.00021643,2]
[372513376,1752666646276,-684.91,0.00021643,2]
[372513377,1752666646286,-1121.67,0.00021643,2]
[372513378,1752666646295,-551.34,0.00021643,2]
[372513379,1752666646305,-468.23,0.00021643,2]
[372513380,1752666646314,-216.89,0.00021643,2]
[372513381,1752666646324,-1164.17,0.00021643,2]
[372513382,1752666646334,-460.0,0.00021643,2]
[372513383,1752666646343,-589.6,0.00021643,2]
[372513384,1752666646353,-460.0,0.00021643,2]
[372513385,1752666646362,-460.0,0.00021643,2]
[372513386,1752666646372,-1035.25,0.00021643,2]
[372513387,1752666646381,-1000.0,0.00021658,2]
[372513388,1752666646391,-767.41967507,0.00021762,5]
[372513389,1752666646400,-501.58314376,0.00021808,2]
[372513390,1752666646410,-500.0,0.00021862,2]
[372513391,1752666646420,-273.85,0.00021917,2]
[372513392,1752666646430,-460.0,0.00021917,2]
[372513393,1752666646442,-1758.23,0.00021917,2]
[372513394,1752666646453,-807.07,0.00021917,2]
[372513395,1752666646463,-608.79,0.00021917,2]
[372513396,1752666646474,-684.91,0.00021917,2]
[372513397,1752666646483,-1121.67,0.00021917,2]
[372513398,1752666646493,-551.34,0.00021917,2]
[372513399,1752666646503,-468.23,0.00021917,2]
[372513400,1752666646518,-1164.17,0.00021917,2]
[372513401,1752666646529,-460.0,0.00021917,2]
[372513402,1752666646538,-589.6,0.00021917,2]
[372513403,1752666646548,-460.0,0.00021917,2]
[372513404,1752666646558,-460.0,0.00021917,2]
[372513405,1752666646569,-1035.25,0.00021917,2]
[372513406,1752666646579,-767.41967507,0.00021969,6]
[372513407,1752666646590,-500.85482562,0.0002199,2]
[372513408,1752666646600,-235.33445595,0.00022,7]
[372513409,1752666646609,-718.12,0.00022,7]
[372513410,1752666646619,-14783.55,0.00022,7]
[372513411,1752666646629,-694.65,0.00022,7]
[372513412,1752666646639,-293.70857859,0.00022096,2]
[372513413,1752666646649,-767.41967507,0.00022176,6]
[372513414,1752666646658,-460.0,0.00022191,2]
[372513416,1752666646668,-1758.23,0.00022191,2]
[372513417,1752666646678,-807.07,0.00022191,2]
[372513419,1752666646688,-608.79,0.00022191,2]
[372513421,1752666646698,-684.91,0.00022191,2]
[372513423,1752666646707,-1121.67,0.00022191,2]
[372513424,1752666646717,-551.34,0.00022191,2]
[372513426,1752666646727,-468.23,0.00022191,2]
[372513428,1752666646737,-1164.17,0.00022191,2]
[372513430,1752666646746,-460.0,0.00022191,2]
[372513431,1752666646756,-589.6,0.00022191,2]
[372513432,1752666646768,-460.0,0.00022191,2]
[372513433,1752666646779,-460.0,0.00022191,2]
[372513434,1752666646788,-1035.25,0.00022191,2]
[372513435,1752666646798,-2180.02873526,0.00022229,2]
[372513436,1752666646807,-151.0,0.00022361,2]
[372513437,1752666646894,-151.0,0.00022361,2]
[372513438,1752666646904,-151.0,0.00022361,2]
[372513439,1752666646914,-500.0,0.00022361,2]
[372513440,1752666646924,-282.0,0.00022361,2]
[372513441,1752666646934,-500.0,0.00022361,2]
[372513442,1752666646943,-207.4,0.00022361,2]
[372513443,1752666646953,-500.0,0.00022361,2]
[372513444,1752666646963,-500.0,0.00022361,2]
[372513445,1752666646973,-500.0,0.00022361,2]
[372513446,1752666646983,-500.0,0.00022361,2]
[372513447,1752666646993,-500.0,0.00022361,2]
[372513448,1752666647003,-500.0,0.00022361,2]
[372513449,1752666647013,-500.0,0.00022361,2]
[372513450,1752666647023,-500.0,0.00022361,2]
[372513451,1752666647033,-273.72678958,0.00022361,2]
[372513453,1752666647043,-767.41967507,0.00022383,7]
[372513454,1752666647053,-460.0,0.00022465,2]
[372513455,1752666647062,-1758.23,0.00022465,2]
[372513456,1752666647073,-807.07,0.00022465,2]
[372513457,1752666647083,-608.79,0.00022465,2]
[372513458,1752666647093,-684.91,0.00022465,2]
[372513459,1752666647102,-1121.67,0.00022465,2]
[372513460,1752666647112,-551.34,0.00022465,2]
[372513461,1752666647121,-468.23,0.00022465,2]
[372513462,1752666647131,-1164.17,0.00022465,2]
[372513463,1752666647140,-538.59,0.00022465,2]
[372513464,1752666647149,-589.6,0.00022465,2]
[372513465,1752666647159,-460.0,0.00022465,2]
[372513466,1752666647168,-460.0,0.00022465,2]
[372513467,1752666647177,-1035.25,0.00022465,2]
[372513468,1752666647187,-699.74181492,0.00022559,2]
[372513469,1752666647196,-767.41967507,0.0002259,7]
[372513470,1752666647206,-151.0,0.000226,7]
[372513471,1752666647215,-250.0,0.00022626,2]
[372513472,1752666647224,-3059.16587203,0.00022649,2]
[372513473,1752666647233,-460.0,0.00022739,2]
[372513474,1752666647243,-1758.23,0.00022739,2]
[372513475,1752666647252,-807.07,0.00022739,2]
[372513476,1752666647262,-608.79,0.00022739,2]
[372513477,1752666647272,-684.91,0.00022739,2]
[372513478,1752666647281,-1121.67,0.00022739,2]
[372513479,1752666647291,-551.34,0.00022739,2]
[372513480,1752666647300,-468.23,0.00022739,2]
[372513481,1752666647310,-1164.17,0.00022739,2]
[372513482,1752666647321,-589.6,0.00022739,2]
[372513483,1752666647330,-460.0,0.00022739,2]
[372513484,1752666647340,-460.0,0.00022739,2]
[372513485,1752666647350,-1035.25,0.00022739,2]
[372513486,1752666647360,-500.0,0.00022758,2]
[372513487,1752666647370,-767.41967507,0.00022797,7]
[372513488,1752666647379,-331.2002356,0.00023,2]
[372513489,1752666647388,-767.41967507,0.00023003,8]
[372513490,1752666647397,-460.0,0.00023013,2]
[372513491,1752666647407,-1758.23,0.00023013,2]
[372513492,1752666647416,-807.07,0.00023013,2]
[372513493,1752666647426,-608.79,0.00023013,2]
[372513494,1752666647440,-684.91,0.00023013,2]
[372513495,1752666647449,-1121.67,0.00023013,2]
[372513496,1752666647459,-551.34,0.00023013,2]
[372513497,1752666647468,-468.23,0.00023013,2]
[372513498,1752666647479,-1164.17,0.00023013,2]
[372513499,1752666647489,-589.6,0.00023013,2]
[372513500,1752666647498,-460.0,0.00023013,2]
[372513501,1752666647521,-1035.25,0.00023013,2]
[372513502,1752666647531,-460.0,0.00023013,2]
[372513503,1752666647540,-151.0,0.000232,5]
[372513504,1752666647550,-767.41967507,0.0002321,8]
[372513505,1752666647559,-247.12,0.00023287,2]
[372513506,1752666647569,-1758.23,0.00023287,2]
[372513507,1752666647578,-807.07,0.00023287,2]
[372513508,1752666647587,-608.79,0.00023287,2]
[372513509,1752666647597,-684.91,0.00023287,2]
[372513510,1752666647606,-1121.67,0.00023287,2]
[372513511,1752666647615,-551.34,0.00023287,2]
[372513512,1752666647625,-468.23,0.00023287,2]
[372513513,1752666647634,-1164.17,0.00023287,2]
[372513514,1752666647644,-589.6,0.00023287,2]
[372513515,1752666647654,-460.0,0.00023287,2]
[372513516,1752666647663,-1035.25,0.00023287,2]
[372513517,1752666647673,-460.0,0.00023287,2]
[372513518,1752666647682,-767.41967507,0.00023417,9]
[372513519,1752666647691,-718.12,0.000235,7]
[372513520,1752666647701,-2180.02873526,0.0002353,2]
[372513521,1752666647711,-2141.0,0.00023557,2]
[372513522,1752666647720,-1758.23,0.00023561,2]
[372513523,1752666647729,-807.07,0.00023561,2]
[372513524,1752666647739,-608.79,0.00023561,2]
[372513525,1752666647748,-684.91,0.00023561,2]
[372513526,1752666647757,-1121.67,0.00023561,2]
[372513527,1752666647767,-551.34,0.00023561,2]
[372513528,1752666647776,-468.23,0.00023561,2]
[372513529,1752666647786,-1164.17,0.00023561,2]
[372513530,1752666647796,-589.6,0.00023561,2]
[372513531,1752666647806,-460.0,0.00023561,2]
[372513532,1752666647819,-1035.25,0.00023561,2]
[372513533,1752666647834,-440.5,0.00023561,2]
[372513534,1752666647847,-823.0,0.00023561,2]
[372513535,1752666647860,-699.74181492,0.00023576,2]
[372513536,1752666647871,-14783.55,0.000236,7]
[372513537,1752666647885,-694.65,0.000236,7]
[372513538,1752666647897,-767.41967507,0.00023624,9]
[372513539,1752666647911,-215.0738,0.0002373,2]
[372513540,1752666647924,-151.0,0.000238,10]
[372513541,1752666647937,-767.41967507,0.00023831,10]
[372513542,1752666647950,-1758.23,0.00023835,2]
[372513543,1752666647963,-807.07,0.00023835,2]
[372513544,1752666647977,-608.79,0.00023835,2]
[372513545,1752666647990,-684.91,0.00023835,2]
[372513546,1752666648002,-1121.67,0.00023835,2]
[372513547,1752666648015,-551.34,0.00023835,2]
[372513548,1752666648027,-468.23,0.00023835,2]
[372513549,1752666648041,-1164.17,0.00023835,2]
[372513550,1752666648054,-589.6,0.00023835,2]
[372513551,1752666648067,-460.0,0.00023835,2]
[372513552,1752666648078,-1035.25,0.00023835,2]
[372513553,1752666648088,-924.91977605,0.000239,2]
[372513554,1752666648101,-230.8109288,0.00024,7]
[372513555,1752666648113,-520.85416667,0.00024,7]
[372513556,1752666648125,-767.41967507,0.00024038,10]
[372513557,1752666648138,-325.51601707,0.00024054,2]
[372513558,1752666648157,-1758.23,0.00024109,2]
[372513559,1752666648182,-807.07,0.00024109,2]
[372513560,1752666648198,-608.79,0.00024109,2]
[372513561,1752666648216,-684.91,0.00024109,2]
[372513562,1752666648233,-1121.67,0.00024109,2]
[372513563,1752666648245,-551.34,0.00024109,2]
[372513564,1752666648256,-468.23,0.00024109,2]
[372513565,1752666648267,-1164.17,0.00024109,2]
[372513566,1752666648279,-589.6,0.00024109,2]
[372513567,1752666648294,-460.0,0.00024109,2]
[372513568,1752666648310,-1035.25,0.00024109,2]
[372513569,1752666648323,-404.30530871,0.00024151,2]
[372513570,1752666648335,-1617.22123483,0.00024151,2]
[372513571,1752666648349,-3638.74777837,0.00024151,2]
[372513572,1752666648363,-6468.88493932,0.00024151,2]
[372513573,1752666648377,-10097.52508497,0.00024151,2]
[372513574,1752666648388,-4013.89011524,0.00024151,2]
[372513575,1752666648400,-14837.1,0.000242,2]
[372513576,1752666648410,-767.41967507,0.00024245,10]
[372513577,1752666648424,-151.0,0.000243,10]
[372513578,1752666648440,-1758.23,0.00024383,2]
[372513579,1752666648452,-807.07,0.00024383,2]
[372513580,1752666648465,-608.79,0.00024383,2]
[372513581,1752666648478,-684.91,0.00024383,2]
[372513582,1752666648491,-1121.67,0.00024383,2]
[372513583,1752666648505,-551.34,0.00024383,2]
[372513584,1752666648518,-468.23,0.00024383,2]
[372513585,1752666648530,-1164.17,0.00024383,2]
[372513586,1752666648546,-589.6,0.00024383,2]
[372513587,1752666648558,-166.64,0.00024383,2]
[372513588,1752666648570,-1035.25,0.00024383,2]
[372513589,1752666648583,-151.0,0.000244,10]
[372513590,1752666648595,-767.41967507,0.00024452,11]
[372513591,1752666648607,-699.74181492,0.00024594,2]
[372513592,1752666648619,-1758.23,0.00024657,2]
[372513593,1752666648630,-807.07,0.00024657,2]
[372513594,1752666648642,-608.79,0.00024657,2]
[372513595,1752666648654,-684.91,0.00024657,2]
[372513596,1752666648666,-1121.67,0.00024657,2]
[372513597,1752666648679,-551.34,0.00024657,2]
[372513598,1752666648691,-468.23,0.00024657,2]
[372513599,1752666648702,-1164.17,0.00024657,2]
[372513600,1752666648714,-589.6,0.00024657,2]
[372513601,1752666648726,-1035.25,0.00024657,2]
[372513602,1752666648741,-200.0,0.00024658,15]
[372513603,1752666648755,-767.41967507,0.00024659,11]
[372513604,1752666648768,-647.0,0.00024764,2]
[372513605,1752666648782,-2155.0,0.00024764,2]
[372513606,1752666648797,-975.719,0.00024764,2]
[372513607,1752666648809,-458.549,0.00024764,2]
[372513608,1752666648822,-62734.3369883,0.000248,2]
[372513609,1752666648834,-151.0,0.00024808,7]
[372513610,1752666648847,-10455.7228314,0.00024819,2]
[372513611,1752666648858,-73632.469714,0.00024829,2]
[372513612,1752666648871,-2180.02873526,0.00024831,2]
[372513613,1752666648883,-170.4186172,0.00024831,2]
[372513614,1752666648895,-767.41967507,0.00024866,12]
[372513615,1752666648907,-500.85113653,0.00024873,2]
[372513616,1752666648919,-31367.1684941,0.0002489,2]
[372513617,1752666648931,-2524.82,0.0002489,10]
[372513618,1752666648943,-820.32511323,0.000249,2]
[372513619,1752666648955,-701.65,0.000249,2]
[372513620,1752666648967,-718.12,0.000249,7]
[372513621,1752666648978,-150000.0,0.000249,2]
[372513622,1752666648991,-49529.51465168,0.000249,2]
[372513623,1752666649003,-123519.15639754,0.000249,2]
[372513624,1752666649341,202.21470722,0.00018044,2]
[372513625,1752666649354,-460.0,0.00019178,2]
[372513626,1752666649364,-460.0,0.00019452,2]
[372513627,1752666649374,-371.65754788,0.00019726,2]
[372513628,1752666649849,-88.34245212,0.00019726,2]
[372513629,1752666649859,-21.9304479,0.00023513,2]
[372513630,1752666649990,-460.0,0.00019178,2]
[372513631,1752666650000,-460.0,0.00019178,2]
[372513632,1752666650009,-460.0,0.00019178,2]
[372513633,1752666650019,-460.0,0.00019452,2]
[372513634,1752666650028,-460.0,0.00019452,2]
[372513635,1752666650038,-460.0,0.00019726,2]
[372513636,1752666650048,-460.0,0.00019726,2]
[372513637,1752666650058,-460.0,0.00019726,2]
[372513638,1752666650067,-460.0,0.0002,2]
[372513639,1752666650077,-460.0,0.0002,2]
[372513640,1752666650087,-460.0,0.00020273,2]
[372513641,1752666650095,-460.0,0.00020273,2]
[372513642,1752666650105,-541.5537927,0.00020547,2]
[372513643,1752666650115,-460.0,0.00020547,2]
[372513644,1752666650124,-460.0,0.00020821,2]
[372513645,1752666650133,-460.0,0.00021095,2]
[372513646,1752666650143,-3230.73823707,0.00023513,2]
[372513647,1752666650153,-3252.66868497,0.00023668,2]
[372513648,1752666650163,-254.11044857,0.0002406,2]
[372513649,1752666650222,-303.81059378,0.00021369,2]
[372513650,1752666650234,-156.18940622,0.00021369,2]
[372513651,1752666650244,-344.03454497,0.00021643,2]
[372513652,1752666650729,-115.96545503,0.00021643,2]
[372513653,1752666650739,-212.26804491,0.00021917,2]
[372513654,1752666650755,-247.73195509,0.00021917,2]
[372513655,1752666650765,-354.26804491,0.00022191,2]
[372513658,1752666840511,157.408302,0.00017602,2]
[372513659,1752666840821,461.59090508,0.00017608,2]
[372513662,1752666900907,199.3597459,0.00018076,2]
[372513663,1752666904666,178.201391,0.00018076,2]
[372513667,1752667034788,250.0,0.00017822,2]
[372513668,1752667142770,256.976166,0.00017608,2]
[372513670,1752667146668,211.5591948,0.00018074,2]
[372513671,1752667254787,24900.0,0.00018026,2]
[372513672,1752667278677,-440.83945273,0.00018153,2]
[372513673,1752667280796,-205.87322233,0.00018153,2]
[372513674,1752667285225,-179.00637629,0.00018153,2]
[372513675,1752667286848,-222.0636749,0.00018153,2]
[372513676,1752667288383,-298.45514047,0.00018153,2]
[372513677,1752667312684,-240.14156448,0.00018153,2]
[372513678,1752667316825,-162.80713014,0.00018153,2]
[372513679,1752667319536,-270.41678168,0.00018153,2]
[372513680,1752667322291,-154.95047714,0.00018153,2]
[372513681,1752667324921,-176.0895589,0.00018153,2]
[372513682,1752667326631,-305.35546147,0.00018153,2]
[372513683,1752667328732,-157.65125675,0.00018153,2]
[372513684,1752667332110,-396.07774841,0.00018153,2]
[372513685,1752667334355,-158.47227745,0.00018153,2]
[372513686,1752667336593,-162.63270375,0.00018153,2]
[372513687,1752667339806,-172.3009407,0.00018153,2]
[372513688,1752667341418,-263.27606042,0.00018153,2]
[372513689,1752667344704,-176.85953272,0.00018153,2]
[372513690,1752667346861,-210.46548647,0.00018153,2]
[372513691,1752667350309,-376.10325438,0.00018153,2]
[372513692,1752667352432,-266.07867593,0.00018153,2]
[372513693,1752667355345,-255.78991385,0.00018153,2]
[372513694,1752667358824,-266.80424269,0.00018153,2]
[372513695,1752667360417,-227.66067857,0.00018153,2]
[372513696,1752667362028,-168.20314998,0.00018153,2]
[372513702,1752667592787,2609.9081671,0.0001807,2]
[372513703,1752667603755,3138.402846,0.00027397,120]
[372513704,1752667634557,-164.20729025,0.000185,2]
[372513705,1752667634577,-509.77476595,0.000185,2]
[372513706,1752667634597,-616.61318403,0.000189,2]
[372513707,1752667634618,-160.0,0.00018973,2]
[372513708,1752667634639,-300.0,0.00019066,2]
[372513709,1752667634660,-1200.0,0.00019067,2]
[372513710,1752667634680,-300.0,0.00019067,2]
[372513711,1752667634701,-1200.0,0.00019067,2]
[372513712,1752667634725,-220.91618432,0.00019068,2]
[372513713,1752667634746,-383.29061745,0.00019068,2]
[372513714,1752667634770,-500.0,0.00019068,2]
[372513715,1752667634796,-500.0,0.00019068,2]
[372513716,1752667634819,-500.0,0.00019068,2]
[372513717,1752667634841,-620.25373239,0.00019068,2]
[372513718,1752667634862,-573.49612577,0.00019068,2]
[372513719,1752667634888,-500.0,0.00019068,2]
[372513720,1752667634910,-500.0,0.00019068,2]
[372513721,1752667634932,-500.0,0.00019068,2]
[372513722,1752667634961,-500.0,0.00019068,2]
[372513723,1752667634983,-500.0,0.00019068,2]
[372513724,1752667635005,-170.13950469,0.00019068,2]
[372513725,1752667643107,-448.83529105,0.00019068,2]
[372513726,1752667643128,-525.70080144,0.00019068,2]
[372513727,1752667643153,-500.0,0.00019068,2]
[372513728,1752667643174,-500.0,0.00019068,2]
[372513729,1752667643196,-500.0,0.00019068,2]
[372513730,1752667643221,-500.0,0.00019068,2]
[372513731,1752667643242,-500.0,0.00019068,2]
[372513732,1752667643264,-500.0,0.00019068,2]
[372513733,1752667643285,-500.0,0.00019068,2]
[372513734,1752667643307,-168.74620116,0.00019068,2]
[372513735,1752667643338,-561.06922883,0.00019068,2]
[372513736,1752667643360,-500.0,0.00019068,2]
[372513737,1752667643381,-545.35901163,0.00019068,2]
[372513738,1752667643402,-3532.99692824,0.00019068,2]
[372513739,1752667740639,252.233065,0.00013699,2]
[372513780,1752667832701,-1128.63243964,0.00018968,2]
[372513781,1752667832710,-300.0,0.00019067,2]
[372513782,1752667832720,-480.0,0.00019067,2]
[372513783,1752667832729,-300.0,0.00019067,2]
[372513784,1752667832738,-194.0,0.00019067,2]
[372513785,1752667832747,-556.01,0.00019068,3]
[372513786,1752667832756,-278.01,0.00019068,3]
[372513787,1752667832767,-834.05,0.00019068,3]
[372513788,1752667832777,-2133.11414911,0.00019073,2]
[372513789,1752667832786,-3982.3896185,0.00019073,2]
[372513790,1752667832796,-462.89075694,0.00019077,2]
[372513791,1752667832807,-185.41624457,0.00019077,2]
[372513792,1752667832817,-340.1188032,0.00019077,2]
[372513793,1752667832826,-447.30008905,0.00019077,2]
[372513794,1752667832835,-107088.77856165,0.00019078,2]
[372513795,1752667832847,-23765.82166604,0.00019078,2]
[372513796,1752667832859,-3184.41321883,0.00019078,2]
[372513807,1752667838619,-364.81,0.00019078,2]
[372513808,1752667838673,-1438.43779679,0.00019078,2]
[372513809,1752667838686,-270.18244147,0.00019078,2]
[372513810,1752667838695,-704.40215503,0.00019078,2]
[372513811,1752667838707,-2093.62556752,0.00019078,2]
[372513812,1752667838779,-220548.19894383,0.00019078,2]
[372513813,1752667838790,-500.50883314,0.00019173,2]
[372513814,1752667838799,-500.0,0.00019173,2]
[372513815,1752667838810,-500.0,0.00019173,2]
[372513816,1752667838819,-500.0,0.00019173,2]
[372513817,1752667838830,-460.0,0.00019178,2]